fUST/lending_fUST_20251020
["ID","MTS","AMOUNT","RATE_DAILY","PERIOD"]
[391901923,1760968249165,-151.0,0.00035444,30]
[391901924,1760968249175,-151.0,0.00035444,30]
[391901925,1760968249184,-151.0,0.00035444,30]
[391901926,1760968249194,-151.0,0.00035444,30]
[391901927,1760968249203,-151.0,0.00035444,30]
[391901928,1760968249212,-151.0,0.00035444,30]
[391901929,1760968249223,-151.0,0.00035444,30]
[391901930,1760968249233,-151.0,0.00035444,30]
[391901931,1760968249242,-151.0,0.00035444,30]
[391901932,1760968249251,-151.0,0.00035444,30]
[391901933,1760968249260,-151.0,0.00035444,30]
[391901934,1760968249270,-181.355164,0.00035444,30]
[391901935,1760968249280,-183.026705,0.00035444,30]
[391901936,1760968249290,-151.0,0.00035444,30]
[391901937,1760968249300,-151.0,0.00035444,30]
[391901938,1760968249311,-151.0,0.00035444,30]
[391901939,1760968249320,-151.0,0.00035444,30]
[391901940,1760968249331,-151.0,0.00035444,30]
[391901941,1760968249340,-151.0,0.00035444,30]
[391901942,1760968249351,-151.0,0.00035444,30]
[391901943,1760968249360,-151.0,0.00035444,30]
[391901944,1760968249369,-151.0,0.00035444,30]
[391901945,1760968249379,-799.886058,0.00035444,30]
[391901946,1760968249388,-151.0,0.00035444,30]
[391901947,1760968249398,-151.0,0.00035444,30]
[391901948,1760968249407,-799.886058,0.00035444,30]
[391901949,1760968249416,-799.886058,0.00035444,30]
[391901950,1760968249426,-799.886058,0.00035444,30]
[391901951,1760968249435,-205.28185,0.00035444,30]
[391901952,1760968249445,-205.28185,0.00035444,30]
[391901953,1760968249454,-205.28185,0.00035444,30]
[391901954,1760968249464,-205.28185,0.00035444,30]
[391901955,1760968249474,-151.0,0.00035444,30]
[391901956,1760968249483,-151.0,0.00035444,30]
[391901957,1760968249497,-151.0,0.00035444,30]
[391901958,1760968249507,-151.0,0.00035444,30]
[391901959,1760968249517,-151.0,0.00035444,30]
[391901960,1760968249527,-151.0,0.00035444,30]
[391901961,1760968249539,-501.806734,0.00035444,30]
[391901962,1760968249550,-151.0,0.00035444,30]
[391901963,1760968249560,-496.657153,0.00035444,30]
[391901964,1760968249572,-501.806734,0.00035444,30]
[391901965,1760968249582,-163.487828,0.00035444,30]
[391901966,1760968249591,-496.657153,0.00035444,30]
[391901967,1760968249602,-501.806734,0.00035444,30]
[391901968,1760968249611,-496.657153,0.00035444,30]
[391901969,1760968249621,-501.806734,0.00035444,30]
[391901970,1760968249631,-496.657153,0.00035444,30]
[391901971,1760968249640,-408.067066,0.00035444,30]
[391901972,1760968249650,-408.067066,0.00035444,30]
[391901973,1760968249660,-408.067066,0.00035444,30]
[391901974,1760968249671,-408.067066,0.00035444,30]
[391901975,1760968249690,-151.0,0.00035444,30]
[391901976,1760968249703,-151.0,0.00035444,30]
[391901977,1760968249717,-151.0,0.00035444,30]
[391901978,1760968249728,-155.877407,0.00035444,30]
[391901979,1760968249738,-151.0,0.00035444,30]
[391901980,1760968249748,-151.0,0.00035444,30]
[391901981,1760968249758,-151.0,0.00035444,30]
[391901982,1760968249768,-151.0,0.00035444,30]
[391901983,1760968249778,-151.0,0.00035444,30]
[391901984,1760968249788,-151.0,0.00035444,30]
[391901985,1760968249797,-261.384855,0.00035444,30]
[391901986,1760968249807,-151.0,0.00035444,30]
[391901987,1760968249817,-192.259718,0.00035444,30]
[391901988,1760968249826,-261.384855,0.00035444,30]
[391901989,1760968249836,-151.0,0.00035444,30]
[391901990,1760968249846,-192.259718,0.00035444,30]
[391901991,1760968249856,-192.259718,0.00035444,30]
[391901992,1760968249866,-261.384855,0.00035444,30]
[391901993,1760968249878,-192.259718,0.00035444,30]
[391901994,1760968249887,-261.384855,0.00035444,30]
[391901995,1760968249897,-151.0,0.00035444,30]
[391901996,1760968249907,-151.0,0.00035444,30]
[391901997,1760968249917,-151.0,0.00035444,30]
[391901998,1760968249927,-415.275717,0.00035444,15]
[391901999,1760968249936,-415.275717,0.00035444,15]
[391902000,1760968249947,-415.275717,0.00035444,15]
[391902001,1760968249956,-415.275717,0.00035444,15]
[391902002,1760968249967,-151.0,0.00035444,2]
[391902003,1760968249977,-1090.923273,0.00035444,30]
[391902004,1760968249987,-1090.923273,0.00035444,30]
[391902005,1760968249996,-1090.923273,0.00035444,30]
[391902006,1760968250006,-151.0,0.00035444,30]
[391902007,1760968250016,-1090.923273,0.00035444,30]
[391902008,1760968250025,-151.0,0.00035444,30]
[391902009,1760968250035,-151.0,0.00035444,30]
[391902010,1760968250045,-151.0,0.00035444,30]
[391902011,1760968250055,-151.0,0.00035444,30]
[391902012,1760968250065,-330.0,0.00035444,14]
[391902013,1760968250074,-330.0,0.00035444,14]
[391902014,1760968250083,-330.0,0.00035444,14]
[391902015,1760968250093,-330.0,0.00035444,14]
[391902016,1760968250104,-151.0,0.00035444,30]
[391902017,1760968250114,-330.0,0.00035444,14]
[391902018,1760968250124,-330.0,0.00035444,14]
[391902019,1760968250134,-330.0,0.00035444,14]
[391902020,1760968250147,-151.0,0.00035444,30]
[391902021,1760968250158,-339.30269403,0.00035444,14]
[391902022,1760968250169,-151.0,0.00035444,30]
[391902023,1760968250179,-151.0,0.00035444,30]
[391902024,1760968250194,-151.0,0.00035444,30]
[391902025,1760968250214,-151.0,0.00035444,30]
[391902026,1760968250226,-1823.142174,0.00035444,30]
[391902027,1760968250236,-1823.142174,0.00035444,30]
[391902028,1760968250246,-1823.142174,0.00035444,30]
[391902029,1760968250257,-1823.142174,0.00035444,30]
[391902030,1760968250266,-151.0,0.00035444,30]
[391902031,1760968250278,-180.969693,0.00035444,30]
[391902032,1760968250289,-151.0,0.00035444,30]
[391902033,1760968250301,-151.0,0.00035444,30]
[391902034,1760968250434,-180.969693,0.00035444,30]
[391902035,1760968250455,-151.0,0.00035444,30]
[391902036,1760968250466,-151.0,0.00035444,30]
[391902037,1760968250476,-151.0,0.00035444,30]
[391902038,1760968250486,-180.969693,0.00035444,30]
[391902039,1760968250500,-180.969693,0.00035444,30]
[391902040,1760968250511,-1141.907673,0.00035444,30]
[391902041,1760968250522,-151.0,0.00035444,30]
[391902042,1760968250534,-1141.907673,0.00035444,30]
[391902043,1760968250546,-151.0,0.00035444,30]
[391902044,1760968250556,-1141.907673,0.00035444,30]
[391902045,1760968250566,-151.0,0.00035444,30]
[391902046,1760968250576,-1141.907673,0.00035444,30]
[391902047,1760968250586,-151.0,0.00035444,30]
[391902048,1760968250596,-154.08754,0.00035444,30]
[391902049,1760968250606,-151.0,0.00035444,30]
[391902050,1760968250616,-154.08754,0.00035444,30]
[391902051,1760968250626,-151.0,0.00035444,30]
[391902052,1760968250637,-154.08754,0.00035444,30]
[391902053,1760968250647,-154.08754,0.00035444,30]
[391902054,1760968250657,-823.86234,0.00035444,30]
[391902055,1760968250668,-195.670966,0.00035444,30]
[391902056,1760968250679,-823.86234,0.00035444,30]
[391902057,1760968250691,-195.670966,0.00035444,30]
[391902058,1760968250701,-151.0,0.00035444,30]
[391902059,1760968250711,-823.86234,0.00035444,30]
[391902060,1760968250726,-195.670966,0.00035444,30]
[391902061,1760968250736,-151.0,0.00035444,30]
[391902062,1760968250746,-823.86234,0.00035444,30]
[391902063,1760968250758,-195.670966,0.00035444,30]
[391902064,1760968250768,-151.0,0.00035444,30]
[391902065,1760968250778,-151.0,0.00035444,30]
[391902066,1760968250788,-151.0,0.00035444,30]
[391902067,1760968250798,-151.0,0.00035444,30]
[391902068,1760968250808,-151.0,0.00035444,30]
[391902069,1760968250819,-165.046059,0.00035444,30]
[391902070,1760968250829,-151.0,0.00035444,30]
[391902071,1760968250839,-151.0,0.00035444,30]
[391902072,1760968250848,-151.0,0.00035444,30]
[391902073,1760968250858,-151.0,0.00035444,30]
[391902074,1760968250869,-161.844852,0.00035444,30]
[391902075,1760968250879,-151.0,0.00035444,30]
[391902076,1760968250890,-161.844852,0.00035444,30]
[391902077,1760968250901,-151.0,0.00035444,30]
[391902078,1760968250911,-151.0,0.00035444,30]
[391902079,1760968250922,-161.844852,0.00035444,30]
[391902080,1760968250932,-151.0,0.00035444,30]
[391902081,1760968250942,-553.943476,0.00035444,30]
[391902082,1760968250952,-161.844852,0.00035444,30]
[391902083,1760968250963,-553.943476,0.00035444,30]
[391902084,1760968250976,-177.750339,0.00035444,30]
[391902085,1760968250986,-553.943476,0.00035444,30]
[391902086,1760968250996,-177.750339,0.00035444,30]
[391902087,1760968251006,-553.943476,0.00035444,30]
[391902088,1760968251016,-177.750339,0.00035444,30]
[391902089,1760968251026,-177.750339,0.00035444,30]
[391902090,1760968251035,-249.018806,0.00035444,30]
[391902091,1760968251045,-180.921693,0.00035444,30]
[391902092,1760968251055,-180.921693,0.00035444,30]
[391902093,1760968251064,-180.921693,0.00035444,30]
[391902094,1760968251074,-180.921693,0.00035444,30]
[391902095,1760968251084,-151.0,0.00035444,30]
[391902096,1760968251094,-1059.156503,0.00035444,30]
[391902097,1760968251103,-1059.156503,0.00035444,30]
[391902098,1760968251112,-1059.156503,0.00035444,30]
[391902099,1760968251122,-1059.156503,0.00035444,30]
[391902100,1760968251132,-324.678356,0.00035444,7]
[391902101,1760968251142,-324.678356,0.00035444,7]
[391902102,1760968251151,-324.678356,0.00035444,7]
[391902103,1760968251161,-151.0,0.00035444,30]
[391902104,1760968251171,-324.678356,0.00035444,7]
[391902105,1760968251181,-151.0,0.00035444,30]
[391902106,1760968251191,-151.0,0.00035444,30]
[391902107,1760968251200,-542.894894,0.00035444,30]
[391902108,1760968251210,-542.894894,0.00035444,30]
[391902109,1760968251220,-151.0,0.00035444,30]
[391902110,1760968251230,-542.894894,0.00035444,30]
[391902111,1760968251239,-542.894894,0.00035444,30]
[391902112,1760968251249,-203.456997,0.00035444,30]
[391902113,1760968251258,-203.456997,0.00035444,30]
[391902114,1760968251268,-151.0,0.00035444,30]
[391902115,1760968251279,-203.456997,0.00035444,30]
[391902116,1760968251290,-151.0,0.00035444,30]
[391902117,1760968251300,-211.958132,0.00035444,30]
[391902118,1760968251310,-203.456997,0.00035444,30]
[391902119,1760968251319,-151.0,0.00035444,30]
[391902120,1760968251329,-211.958132,0.00035444,30]
[391902121,1760968251339,-151.0,0.00035444,30]
[391902122,1760968251348,-151.0,0.00035444,30]
[391902123,1760968251358,-211.958132,0.00035444,30]
[391902124,1760968251367,-151.0,0.00035444,30]
[391902125,1760968251377,-211.958132,0.00035444,30]
[391902126,1760968251387,-166.544519,0.00035444,30]
[391902127,1760968251396,-166.544519,0.00035444,30]
[391902128,1760968251406,-166.544519,0.00035444,30]
[391902129,1760968251415,-219.803885,0.00035444,30]
[391902130,1760968251425,-151.0,0.00035444,30]
[391902131,1760968251435,-1483.852699,0.00035444,30]
[391902132,1760968251444,-219.803885,0.00035444,30]
[391902133,1760968251454,-151.0,0.00035444,30]
[391902134,1760968251463,-151.0,0.00035444,30]
[391902135,1760968251474,-166.544519,0.00035444,30]
[391902136,1760968251483,-1483.852699,0.00035444,30]
[391902137,1760968251497,-219.803885,0.00035444,30]
[391902138,1760968251510,-151.0,0.00035444,30]
[391902139,1760968251520,-151.0,0.00035444,30]
[391902140,1760968251531,-1483.852699,0.00035444,30]
[391902141,1760968251541,-219.803885,0.00035444,30]
[391902142,1760968251551,-151.0,0.00035444,30]
[391902143,1760968251561,-1483.852699,0.00035444,30]
[391902144,1760968251571,-151.0,0.00035444,30]
[391902145,1760968251580,-151.0,0.00035444,30]
[391902146,1760968251590,-10000.0,0.00035444,30]
[391902147,1760968251599,-220.519447,0.00035444,30]
[391902148,1760968251609,-10000.0,0.00035444,30]
[391902149,1760968251619,-10000.0,0.00035444,30]
[391902150,1760968251628,-220.519447,0.00035444,30]
[391902151,1760968251638,-220.519447,0.00035444,30]
[391902152,1760968251648,-173.402367,0.00035444,30]
[391902153,1760968251658,-10000.0,0.00035444,30]
[391902154,1760968251668,-151.0,0.00035444,30]
[391902155,1760968251678,-10000.0,0.00035444,30]
[391902156,1760968251687,-220.519447,0.00035444,30]
[391902157,1760968251697,-173.402367,0.00035444,30]
[391902158,1760968251707,-10000.0,0.00035444,30]
[391902159,1760968251716,-151.0,0.00035444,30]
[391902160,1760968251726,-10000.0,0.00035444,30]
[391902161,1760968251736,-151.0,0.00035444,30]
[391902162,1760968251745,-173.402367,0.00035444,30]
[391902163,1760968251755,-10000.0,0.00035444,30]
[391902164,1760968251764,-152.764304,0.00035444,30]
[391902165,1760968251774,-10000.0,0.00035444,30]
[391902166,1760968251784,-173.402367,0.00035444,30]
[391902167,1760968251794,-151.244164,0.00035444,30]
[391902168,1760968251803,-152.094428,0.00035444,30]
[391902169,1760968251813,-10000.0,0.00035444,30]
[391902170,1760968251823,-10000.0,0.00035444,30]
[391902171,1760968251831,-151.0,0.00035444,30]
[391902172,1760968251841,-151.0,0.00035444,30]
[391902173,1760968251851,-10000.0,0.00035444,30]
[391902174,1760968251860,-256.031148,0.00035444,30]
[391902175,1760968251870,-10000.0,0.00035444,30]
[391902176,1760968251879,-256.031148,0.00035444,30]
[391902177,1760968251889,-151.0,0.00035444,30]
[391902178,1760968251899,-435.042453,0.00035444,30]
[391902179,1760968251908,-152.0,0.00035444,14]
[391902180,1760968251918,-151.0,0.00035444,30]
[391902181,1760968251929,-152.0,0.00035444,14]
[391902182,1760968251940,-256.031148,0.00035444,30]
[391902183,1760968251951,-151.0,0.00035444,30]
[391902184,1760968251962,-435.042453,0.00035444,30]
[391902185,1760968251973,-151.0,0.00035444,30]
[391902186,1760968251983,-435.042453,0.00035444,30]
[391902187,1760968251992,-256.031148,0.00035444,30]
[391902188,1760968252002,-151.0,0.00035444,30]
[391902189,1760968252011,-435.042453,0.00035444,30]
[391902190,1760968252021,-152.0,0.00035444,14]
[391902191,1760968252029,-152.0,0.00035444,14]
[391902192,1760968252039,-151.0,0.00035444,30]
[391902193,1760968252048,-152.0,0.00035444,14]
[391902194,1760968252057,-152.0,0.00035444,14]
[391902195,1760968252067,-151.0,0.00035444,30]
[391902196,1760968252174,-152.0,0.00035444,14]
[391902197,1760968252184,-152.0,0.00035444,14]
[391902198,1760968252193,-152.0,0.00035444,14]
[391902199,1760968252203,-152.0,0.00035444,14]
[391902200,1760968252212,-152.0,0.00035444,14]
[391902201,1760968252223,-152.0,0.00035444,14]
[391902202,1760968252232,-152.0,0.00035444,14]
[391902203,1760968252241,-151.0,0.00035444,30]
[391902204,1760968252251,-1638.368023,0.00035444,30]
[391902205,1760968252261,-152.0,0.00035444,14]
[391902206,1760968252270,-500.64477719,0.00035444,13]
[391902207,1760968252279,-500.0,0.00035444,13]
[391902208,1760968252288,-744.84740603,0.00035444,14]
[391902209,1760968252298,-168.0,0.00035446,2]
[391902210,1760968252307,-229.14133969,0.00035448,2]
[391902211,1760968252316,-2100.0,0.00035452,7]
[391902212,1760968252326,-161.12948087,0.00035452,30]
[391902213,1760968252336,-150.0,0.00035473,5]
[391902214,1760968252345,-152.37,0.00035497,60]
[391902215,1760968252356,-4204.0,0.00035544,2]
[391902216,1760968252367,-152.37,0.00035597,60]
[391902217,1760968252377,-1622.94,0.00035616,30]
[391902218,1760968252387,-2999.0,0.00035616,120]
[391902219,1760968252398,-265.22693521,0.00035616,2]
[391902220,1760968252407,-168.0,0.0003565,7]
[391902221,1760968252417,-1000.0,0.0003565,4]
[391902222,1760968252427,-500.0,0.00035664,60]
[391902223,1760968252436,-152.37,0.00035697,60]
[391902224,1760968252448,-66385.65,0.000357,14]
[391902225,1760968252457,-456.0,0.0003574,120]
[391902226,1760968252466,-457.0,0.00035748,2]
[391902227,1760968252476,-152.37,0.00035797,60]
[391902228,1760968252486,-457.0,0.00035804,7]
[391902229,1760968252499,-257.0,0.00035832,2]
[391902230,1760968252508,-1622.94,0.0003589,30]
[391902231,1760968252517,-152.37,0.00035897,60]
[391902232,1760968252526,-1032.195897,0.000359,10]
[391902233,1760968252537,-151.0,0.000359,23]
[391902234,1760968252547,-177.24960773,0.000359,120]
[391902235,1760968252556,-161.12948087,0.00035918,30]
[391902236,1760968252567,-161.12948088,0.00035918,30]
[391902237,1760968252577,-1000.0,0.0003592,10]
[391902238,1760968252586,-5000.0,0.00035934,4]
[391902239,1760968252595,-500.0,0.00035938,60]
[391902240,1760968252606,-1000.0,0.0003594,10]
[391902241,1760968252616,-600.0,0.00035946,2]
[391902242,1760968252625,-1000.0,0.0003596,10]
[391902243,1760968252634,-1000.0,0.0003598,10]
[391902244,1760968252643,-1168.180886,0.0003598,10]
[391902245,1760968252653,-152.37,0.00035997,60]
[391902246,1760968252662,-500.433434,0.00036,120]
[391902247,1760968252671,-24075.15905298,0.00036,60]
[391902248,1760968253641,-379.02,0.00024165,10]
[391902249,1760968253651,-500.0,0.00024173,2]
[391902250,1760968253660,-500.0,0.00024173,2]
[391902251,1760968253670,-228.33853016,0.00024173,2]
[391902252,1760968253679,-278.21991767,0.00024173,2]
[391902253,1760968253688,-221.0646257,0.00024173,2]
[391902254,1760968253698,-500.0,0.00024173,2]
[391902255,1760968253707,-500.0,0.00024173,2]
[391902256,1760968253717,-500.0,0.00024173,2]
[391902257,1760968253727,-500.0,0.00024173,2]
[391902258,1760968253736,-271.2219493,0.00024173,2]
[391902259,1760968253746,-500.0,0.00024173,2]
[391902260,1760968253756,-427.33041577,0.00024173,2]
[391902261,1760968253766,-500.0,0.00024173,2]
[391902262,1760968253776,-500.0,0.00024173,2]
[391902263,1760968253785,-500.0,0.00024173,2]
[391902264,1760968253795,-500.0,0.00024173,2]
[391902265,1760968253805,-151.0,0.00034054,30]
[391902266,1760968253814,-1638.368023,0.00034054,30]
[391902267,1760968253823,-194.566294,0.00034054,30]
[391902268,1760968253833,-150.239,0.00035224,2]
[391902269,1760968253842,-233.337158,0.00035444,2]
[391902270,1760968253852,-151.0,0.00035444,30]
[391902271,1760968253862,-151.0,0.00035444,30]
[391902272,1760968253871,-1638.368023,0.00035444,30]
[391902273,1760968253881,-99226.92606339,0.00036,60]
[391902274,1760968254614,-500.0,0.00024173,2]
[391902275,1760968254631,-500.0,0.00024173,2]
[391902276,1760968254646,-500.0,0.00024173,2]
[391902277,1760968254662,-500.0,0.00024173,2]
[391902278,1760968254677,-368.24372281,0.00024173,2]
[391902279,1760968254692,-500.0,0.00024173,2]
[391902280,1760968254707,-500.0,0.00024173,2]
[391902281,1760968254723,-500.0,0.00024173,2]
[391902282,1760968254738,-500.0,0.00024173,2]
[391902283,1760968254754,-500.0,0.00024173,2]
[391902284,1760968254771,-500.0,0.00024173,2]
[391902285,1760968254786,-500.0,0.00024173,2]
[391902286,1760968254800,-500.0,0.00024173,2]
[391902287,1760968254815,-500.0,0.00024173,2]
[391902288,1760968254830,-500.0,0.00024173,2]
[391902289,1760968254845,-500.0,0.00024173,2]
[391902290,1760968254861,-500.0,0.00024173,2]
[391902291,1760968254876,-588.52504273,0.00024173,2]
[391902292,1760968254892,-500.0,0.00024173,2]
[391902293,1760968254903,-500.0,0.00024173,2]
[391902294,1760968254913,-500.0,0.00024173,2]
[391902295,1760968254923,-500.0,0.00024173,2]
[391902296,1760968254934,-500.0,0.00024173,2]
[391902297,1760968254943,-500.0,0.00024173,2]
[391902298,1760968254954,-500.0,0.00024173,2]
[391902299,1760968254964,-500.0,0.00024173,2]
[391902300,1760968254974,-1638.368023,0.00034054,30]
[391902301,1760968254983,-1638.368023,0.00035444,30]
[391902302,1760968255177,-500.0,0.00035616,120]
[391902303,1760968255193,-162539.38246141,0.00036,60]
[391902304,1760968255205,-144338.09896481,0.00036,60]
[391902305,1760968292178,3848.07521681,0.00024075,2]
[391902306,1760968295200,-6908.08561591,0.00024075,2]
[391902307,1760968295355,-231.6645496,0.00024075,2]
[391902308,1760968297736,-10000.01,0.00024075,2]
[391902309,1760968297850,-10000.01,0.00024075,2]
[391902310,1760968297945,-308.17555582,0.00024075,2]
[391902311,1760968297997,-10000.01,0.00024075,2]
[391902312,1760968299578,-339.12465709,0.00024075,2]
[391902313,1760968302119,-513.59602812,0.00024075,2]
[391902314,1760968304034,-257.84607018,0.00024075,2]
[391902315,1760968305972,-250.0,0.00024065,10]
[391902316,1760968306829,-35.39,0.00024065,10]
[391902317,1760968306865,-9929.23,0.00024075,2]
[391902318,1760968306945,-10000.01,0.00024075,2]
[391902319,1760968307066,-10000.01,0.00024075,2]
[391902320,1760968307838,-285.61960498,0.00024075,2]
[391902321,1760968309380,-247.03,0.00024065,3]
[391902322,1760968309402,-27.28083146,0.00024075,2]
[391902323,1760968326033,-237.82,0.00024065,10]
[391902324,1760968326055,-62.18,0.00024075,2]
[391902331,1760968328505,-168.18118693,0.00024074,2]
[391902340,1760968330492,-131.81881307,0.00024074,2]
[391902341,1760968330514,-118.06400046,0.00024075,2]
[391902353,1760968333021,-300.0248526,0.00024075,2]
[391902364,1760968334703,-179.28,0.00024065,10]
[391902379,1760968336712,-18.91,0.00024065,10]
[391902380,1760968336734,-170.01828604,0.00024075,2]
[391902391,1760968338108,-179.90306882,0.00024075,2]
[391902402,1760968339706,-475.36039806,0.00024075,2]
[391902440,1760968356066,-175.68324046,0.00024065,10]
[391902444,1760968358503,-19.93675954,0.00024065,10]
[391902445,1760968358524,-280.06324043,0.00024073,2]
[391902450,1760968361471,-163.01,0.00024065,10]
[391902451,1760968361491,-69.72228504,0.00024073,2]
[391902453,1760968362913,-172.47296786,0.00024073,2]
[391902454,1760968365782,-206.74150667,0.00024073,2]
[391902455,1760968365805,-116.16375063,0.00024074,2]
[391902456,1760968367759,-136.19424374,0.00024074,2]
[391902457,1760968367784,-59.01874087,0.00024074,2]
[391902458,1760968370309,-238.53136205,0.00024074,2]
[391902460,1760968386080,-195.55631107,0.00024065,10]
[391902461,1760968388326,-155.36852801,0.00024065,10]
[391902462,1760968391171,-241.85329877,0.00024065,10]
[391902463,1760968393683,-181.56556913,0.00024065,10]
[391902464,1760968396197,-40.75629302,0.00024065,10]
[391902465,1760968396220,-190.20522945,0.00024074,2]
[391902466,1760968397718,-12.24466763,0.00024074,2]
[391902467,1760968397742,-152.02708031,0.00024074,2]
[391902468,1760968397765,-40.73460474,0.00024074,2]
[391902469,1760968399067,-166.31046607,0.00024074,2]
[391902470,1760968409749,2304.0,0.0002401,2]
[391902471,1760968410338,-292.95492919,0.00024074,2]
[391902472,1760968410363,-7.04507081,0.00024074,2]
[391902473,1760968411759,-226.94957607,0.00024074,2]
[391902474,1760968412031,14570.4727604,0.00024,2]
[391902475,1760968415253,-158.22298461,0.00024074,2]
[391902476,1760968416749,152.76089314,0.00024,2]
[391902477,1760968419784,-66.63487279,0.00024074,2]
[391902478,1760968419807,-127.33573024,0.00024074,2]
[391902479,1760968422250,-190.75,0.00024074,2]
[391902480,1760968423640,-181.91426976,0.00024074,2]
[391902481,1760968423664,-38.60712502,0.00024075,2]
[391902482,1760968425050,-153.0,0.00024075,2]
[391902483,1760968427162,-400.16,0.00024075,2]
[391902484,1760968428804,-341.35688039,0.00024075,2]
[391902485,1760968446574,-486.40397188,0.00024075,2]
[391902486,1760968447934,-258.15826098,0.00024075,2]
[391902487,1760968449520,150.0,0.00020217,2]
[391902488,1760968450607,294.48,0.00021179,2]
[391902489,1760968450847,441.72,0.00022142,2]
[391902490,1760968451261,588.96,0.00023105,2]
[391902491,1760968451524,-296.26846397,0.00024075,2]
[391902492,1760968453476,-420.22219541,0.00024067,2]
[391902493,1760968456345,-249.15061512,0.00024067,2]
[391902494,1760968459046,-66.82718947,0.00024067,2]
[391902495,1760968459072,-147.08438131,0.00024075,2]
[391902496,1760968460968,-318.89416948,0.00024075,2]
[391902497,1760968464403,-172.5,0.00024075,2]
[391902498,1760968466318,-160.90008854,0.00024073,2]
[391902499,1760968466341,-1.8034749,0.00024075,2]
[391902500,1760968467721,-524.21803242,0.00024075,2]
[391902501,1760968469630,-364.19240879,0.00024075,2]
[391902502,1760968470404,804.53887543,0.0002401,2]
[391902503,1760968472644,-272.97207488,0.00024075,2]
[391902504,1760968475207,-174.82904481,0.00024075,2]
[391902505,1760968491024,-326.59993836,0.00024075,2]
[391902506,1760968492450,-166.0,0.00024075,2]
[391902507,1760968494344,-206.43739216,0.00024075,2]
[391902508,1760968494371,174.82904481,0.0002401,2]
[391902509,1760968496299,-500.0,0.00024075,2]
[391902515,1760968498419,-168.78025044,0.00024075,2]
[391902516,1760968501434,-170.12956896,0.00024075,2]
[391902517,1760968503475,-153.0,0.00024075,2]
[391902518,1760968503527,5000.0,0.0002401,2]
[391902519,1760968504865,-341.77701539,0.00024075,2]
[391902520,1760968509258,-172.905253,0.00024075,2]
[391902521,1760968511732,-167.66807833,0.00024075,2]
[391902522,1760968512800,4499.95564751,0.0002401,2]
[391902523,1760968513439,-233.05713078,0.00024075,2]
[391902524,1760968517132,-447.06699253,0.00024075,2]
[391902525,1760968519550,-161.10587092,0.00024075,2]
[391902526,1760968521230,166.0,0.0002401,2]
[391902527,1760968524665,-180.0,0.00024075,2]
[391902528,1760968526173,-301.75947759,0.00024075,2]
[391902529,1760968529635,-258.90655115,0.00024075,2]
[391902530,1760968530366,5000.0,0.0002401,2]
[391902531,1760968531903,-230.37328211,0.00024075,2]
[391902532,1760968533892,-186.8754605,0.00024075,2]
[391902533,1760968551028,-295.992915,0.00024075,2]
[391902534,1760968553113,-271.72578774,0.00024075,2]
[391902535,1760968555514,5000.0,0.0002401,2]
[391902536,1760968556590,-293.08938649,0.00024075,2]
[391902537,1760968559575,-181.20721973,0.00024075,2]
[391902538,1760968563890,-300.0,0.00024075,2]
[391902539,1760968579949,3185.43696257,0.0002401,2]
[391902540,1760968580621,-171.36217915,0.00024075,2]
[391902541,1760968583048,-396.045265,0.00024075,2]
[391902542,1760968584921,-173.7383547,0.00024075,2]